bitfinex-derivatives/quotes_BTCF0:USTF0_20220102
["timestamp","ask_amount","ask_price","bid_price","bid_amount"]
[1641110130110,0.192534,47113.0,47102.0,0.36092085]
[1641110130309,0.192534,47113.0,47102.0,0.45478085]
[1641110130702,0.02123124,47111.0,47102.0,0.45478085]
[1641110131104,0.14033567,47112.0,47102.0,0.45478085]
[1641110131501,0.14033567,47112.0,47102.0,0.09386]
[1641110131701,0.14033567,47112.0,47106.0,0.06]
[1641110131901,0.32733567,47112.0,47106.0,0.18]
[1641110132101,0.32733567,47112.0,47102.0,0.09386]
[1641110132301,0.32733567,47112.0,47103.0,0.18]
[1641110132502,0.32733567,47112.0,47103.0,0.36092085]
[1641110133206,0.32733567,47112.0,47100.0,1.02208808]
[1641110133207,0.14033567,47112.0,47100.0,0.18]
[1641110133912,0.35056655,47112.0,47100.0,0.18]
[1641110135206,0.16156655,47112.0,47100.0,0.18]
[1641110135908,0.35156655,47112.0,47100.0,0.18]
[1641110136806,0.33033567,47112.0,47100.0,0.18]
[1641110137206,0.14033567,47112.0,47100.0,0.18]
[1641110137908,0.32933567,47112.0,47100.0,0.18]
[1641110139110,0.14033567,47112.0,47100.0,0.18]
[1641110139911,0.32633567,47112.0,47100.0,0.18]
[1641110141013,0.32633567,47112.0,47106.0,0.18]
[1641110141211,0.14033567,47112.0,47106.0,0.18]
[1641110141613,0.14033567,47112.0,47100.0,0.009794]
[1641110141812,0.32733567,47112.0,47106.0,0.163]
[1641110143015,0.02123364,47107.0,47106.0,0.163]
[1641110143216,0.08237364,47107.0,47100.0,0.009794]
[1641110143619,0.08237364,47107.0,47097.0,0.25552597]
[1641110143816,0.26937364,47107.0,47097.0,0.25552597]
[1641110144516,0.26937364,47107.0,47098.0,0.32033567]
[1641110144715,0.187,47107.0,47106.0,0.18]
[1641110144916,0.14033567,47117.0,47106.0,0.41432567]
[1641110145118,0.14033567,47117.0,47107.0,0.09895861]
[1641110145816,0.32433567,47117.0,47107.0,0.28595861]
[1641110146421,0.32433567,47117.0,47107.0,0.187]
[1641110146832,0.32433567,47117.0,47108.0,0.009794]
[1641110147234,0.14033567,47117.0,47108.0,0.009794]
[1641110147833,0.14033567,47117.0,47108.0,0.203794]
[1641110149235,0.14033567,47117.0,47108.0,0.009794]
[1641110149837,0.14033567,47117.0,47108.0,0.201794]
[1641110151241,0.14033567,47117.0,47108.0,0.009794]
[1641110151440,0.14033567,47117.0,47106.0,0.14033567]
[1641110151840,0.14033567,47117.0,47108.0,0.189]
[1641110152340,0.32033567,47117.0,47108.0,0.189]
[1641110152540,0.007534,47116.0,47108.0,0.189]
[1641110153139,0.007534,47116.0,47106.0,0.14033567]
[1641110153943,0.188534,47116.0,47106.0,0.32633567]
[1641110155843,0.007534,47116.0,47106.0,0.32933567]
[1641110156844,0.007534,47116.0,47106.0,0.50933567]
[1641110157246,0.007534,47116.0,47106.0,0.32033567]
[1641110157846,0.007534,47116.0,47106.0,0.50933567]
[1641110158050,0.35381069,47114.0,47112.0,1.20298297]
[1641110159849,0.59179387,47116.0,47113.0,0.18]
[1641110160048,1.30417545,47123.0,47113.0,0.25802]
[1641110160250,1.30417545,47123.0,47121.0,0.18]
[1641110160856,1.585862,47134.0,47122.0,0.001]
[1641110160857,1.30417545,47125.0,47122.0,0.001]
[1641110161050,1.30417545,47125.0,47119.0,0.10896873]
[1641110161349,1.30417545,47125.0,47124.0,0.14033567]
[1641110161550,1.30417545,47125.0,47124.0,0.20338567]
[1641110161950,1.30417545,47125.0,47124.0,0.39738567]
[1641110162152,1.30417545,47133.0,47124.0,0.39738567]
[1641110163151,0.0904363,47131.0,47125.0,0.09697068]
[1641110163954,0.0904363,47131.0,47125.0,0.27797068]
[1641110164854,1.39461175,47135.0,47125.0,0.27797068]
[1641110165854,1.39461175,47135.0,47126.0,0.09697068]
[1641110166653,0.0904363,47135.0,47125.0,1.30213664]
[1641110167454,1.39461175,47135.0,47125.0,1.30213664]
[1641110167855,0.0904363,47135.0,47125.0,1.43613664]
[1641110168753,0.830252,47130.0,47126.0,0.09697068]
[1641110169857,0.830252,47130.0,47126.0,0.28197068]
[1641110170254,0.0904363,47135.0,47126.0,0.28197068]
[1641110170255,0.35581212,47127.0,47126.0,0.185]
[1641110170758,0.35581212,47127.0,47126.0,0.28197068]
[1641110171358,0.35581212,47127.0,47126.0,0.09697068]
[1641110171960,0.35581212,47129.0,47126.0,0.28597068]
[1641110172564,0.35581212,47129.0,47127.0,1.30202649]
[1641110173265,0.35581212,47130.0,47127.0,1.30202649]
[1641110173762,0.35581212,47130.0,47128.0,1.20505581]
[1641110175461,0.35581212,47130.0,47128.0,1.30202649]
[1641110175862,0.35581212,47130.0,47128.0,1.20505581]
[1641110176063,0.35581212,47130.0,47128.0,1.39405581]
[1641110177363,0.35581212,47130.0,47129.0,0.09697068]
[1641110177765,0.830252,47131.0,47128.0,1.32595873]
[1641110177965,0.830252,47131.0,47129.0,0.19]
[1641110179368,0.007534,47136.0,47125.0,0.36086037]
[1641110179567,0.07895,47135.0,47125.0,0.36086037]
[1641110179766,0.07895,47135.0,47126.0,0.01122364]
[1641110179966,0.07895,47135.0,47126.0,0.33015064]
[1641110180868,0.07895,47135.0,47127.0,0.01122364]
[1641110181368,0.07895,47135.0,47134.0,0.14033567]
[1641110181970,0.07895,47135.0,47134.0,0.32833567]
[1641110183171,0.07895,47135.0,47134.0,0.14033567]
[1641110184174,0.07895,47135.0,47134.0,0.32833567]
[1641110184873,0.02121778,47141.0,47134.0,0.32833567]
[1641110185378,0.02121778,47141.0,47134.0,0.14033567]
[1641110186176,0.02121778,47141.0,47134.0,0.29433567]
[1641110187378,0.02121778,47141.0,47134.0,0.14033567]
[1641110187988,0.02121778,47141.0,47134.0,0.29433567]
[1641110189084,0.007534,47143.0,47134.0,0.29433567]
[1641110189284,0.007534,47143.0,47134.0,0.14033567]
[1641110198496,0.830252,47139.0,47137.0,0.36086037]
[1641110199998,0.830252,47139.0,47137.0,0.53786037]
[1641110200200,0.830252,47138.0,47137.0,0.53786037]
[1641110200802,0.830252,47139.0,47137.0,0.53786037]
[1641110201204,0.830252,47139.0,47137.0,0.36086037]
[1641110202104,0.830252,47139.0,47137.0,0.54386037]
[1641110202305,0.09042168,47138.0,47137.0,0.54386037]
[1641110203209,0.830252,47139.0,47137.0,0.54386037]
[1641110203406,0.830252,47139.0,47137.0,0.36086037]
[1641110204106,0.830252,47139.0,47137.0,0.54686037]
[1641110204308,0.830252,47139.0,47137.0,0.68719604]
[1641110204707,0.830252,47139.0,47137.0,0.75820604]
[1641110204908,0.830252,47139.0,47138.0,0.36086037]
[1641110205909,0.830252,47139.0,47137.0,0.21134567]
[1641110206110,0.830252,47139.0,47138.0,0.32285025]
[1641110206310,1.39459713,47145.0,47138.0,0.92428421]
[1641110206311,0.830252,47141.0,47138.0,0.92428421]
[1641110206912,0.830252,47141.0,47138.0,0.79043396]
[1641110207310,0.830252,47141.0,47138.0,0.60143396]
[1641110207810,0.830252,47141.0,47140.0,0.3613823]
[1641110208410,0.830252,47142.0,47140.0,0.3613823]
[1641110209914,0.830252,47143.0,47140.0,0.14073761]
[1641110210114,0.830252,47143.0,47140.0,0.93117157]
[1641110210616,0.830252,47144.0,47142.0,0.36136323]
[1641110212020,0.9206667,47145.0,47143.0,0.36136323]
[1641110212220,0.00031821,47144.0,47143.0,0.36136323]
[1641110212820,0.09073291,47144.0,47143.0,0.36136323]
[1641110213921,0.00031821,47144.0,47143.0,0.36136323]
[1641110214122,0.00031821,47144.0,47143.0,0.54836323]
[1641110215224,0.09073291,47144.0,47143.0,0.54836323]
[1641110215425,0.09073291,47144.0,47143.0,0.36136323]
[1641110216027,0.09073291,47144.0,47143.0,0.55336323]
[1641110217630,0.09073291,47144.0,47143.0,0.36136323]
[1641110218027,0.09073291,47144.0,47143.0,0.55436323]
[1641110219427,0.09073291,47144.0,47143.0,0.36136323]
[1641110219827,0.00031821,47144.0,47143.0,0.36136323]
[1641110220030,0.00031821,47144.0,47143.0,0.55336323]
[1641110220430,0.59623266,47144.0,47143.0,0.192]
[1641110221431,0.59623266,47144.0,47142.0,0.36136323]
[1641110221631,0.59591445,47144.0,47142.0,0.36136323]
[1641110222041,0.59591445,47144.0,47142.0,0.55336323]
[1641110223143,0.09040752,47145.0,47143.0,0.10777139]
[1641110223342,0.00031822,47144.0,47143.0,0.10777139]
[1641110223545,0.83057022,47144.0,47143.0,0.70920535]
[1641110224143,0.83057022,47144.0,47143.0,0.90120535]
[1641110225344,0.83057022,47144.0,47143.0,0.70920535]
[1641110226144,0.83057022,47144.0,47143.0,0.90120535]
[1641110226347,0.83057022,47144.0,47143.0,0.79343396]
[1641110227144,0.83057022,47144.0,47143.0,0.90120535]
[1641110227546,0.83057022,47144.0,47143.0,0.70920535]
[1641110227746,0.92097774,47144.0,47143.0,0.70920535]
[1641110228247,0.92097774,47144.0,47143.0,0.90120535]
[1641110228445,0.92097774,47144.0,47143.0,0.79343396]
[1641110228947,0.92097774,47144.0,47143.0,0.90120535]
[1641110229548,0.92097774,47144.0,47143.0,0.70920535]
[1641110230046,0.92097774,47144.0,47143.0,0.90120535]
[1641110232147,0.92097774,47144.0,47143.0,0.90420535]
[1641110233550,0.92097774,47144.0,47143.0,0.70920535]
[1641110234250,0.92097774,47144.0,47143.0,0.79443396]
[1641110234954,0.92097774,47144.0,47143.0,0.90220535]
[1641110235556,0.92097774,47144.0,47143.0,0.70920535]
[1641110235954,0.92065952,47144.0,47143.0,0.70920535]
[1641110236155,0.92065952,47144.0,47143.0,0.90220535]
[1641110236955,0.830252,47144.0,47143.0,0.90220535]
[1641110237554,0.830252,47144.0,47143.0,0.70920535]
[1641110238260,0.830252,47144.0,47143.0,0.90220535]
[1641110238462,0.14912752,47145.0,47143.0,0.30077139]
[1641110239165,0.05872,47145.0,47144.0,0.71021273]
[1641110239562,0.05872,47145.0,47144.0,0.8505484]
[1641110240062,0.05872,47145.0,47144.0,0.71021273]
[1641110240262,0.05872,47145.0,47144.0,0.90221273]
[1641110241464,0.05872,47145.0,47144.0,0.71021273]
[1641110241666,0.05872,47145.0,47144.0,0.8505484]
[1641110242264,0.05872,47145.0,47144.0,1.0425484]
[1641110242464,0.05872,47145.0,47144.0,0.90221273]
[1641110242666,1.311,47146.0,47144.0,0.90221273]
[1641110243664,0.28067134,47145.0,47144.0,0.71021273]
[1641110243866,0.36840134,47145.0,47144.0,0.60244134]
[1641110244066,1.67257679,47145.0,47141.0,0.36150662]
[1641110245770,1.30417545,47144.0,47140.0,0.36150662]
[1641110247987,0.14033567,47141.0,47140.0,0.36150662]
[1641110250173,0.14033567,47141.0,47140.0,0.49750662]
[1641110251575,0.14033567,47141.0,47140.0,0.36150662]
[1641110252875,0.14033567,47141.0,47139.0,0.36150662]
[1641110253276,0.14033567,47141.0,47140.0,0.36150662]
[1641110254277,0.14033567,47141.0,47140.0,0.49850662]
[1641110255277,0.2307515,47141.0,47140.0,0.49850662]
[1641110256200,0.2307515,47141.0,47140.0,0.51050662]
[1641110256696,0.09041583,47141.0,47140.0,0.51050662]
[1641110257298,0.2307515,47141.0,47140.0,0.51050662]
[1641110257497,0.2307515,47141.0,47140.0,0.36150662]
[1641110257701,0.14033567,47141.0,47139.0,0.36150662]
[1641110257900,0.09041583,47142.0,47139.0,0.36150662]
[1641110258201,0.09041583,47142.0,47139.0,0.51850662]
[1641110258598,0.09041583,47140.0,47139.0,0.51850662]
[1641110259002,0.09041583,47144.0,47139.0,0.157]
[1641110259499,0.09041583,47144.0,47138.0,0.60244134]
[1641110259999,0.09041583,47144.0,47140.0,0.36145893]
[1641110260402,0.09041583,47144.0,47139.0,0.36145893]
[1641110261002,0.09041583,47144.0,47140.0,0.36145893]
[1641110262106,0.09041583,47144.0,47141.0,0.36145893]
[1641110262604,0.09041583,47144.0,47140.0,0.53845893]
[1641110263305,0.09041583,47144.0,47141.0,0.36145893]
[1641110264204,0.09041583,47144.0,47141.0,0.54045893]
[1641110265310,0.09041583,47144.0,47142.0,0.36145893]
[1641110266210,0.09041583,47144.0,47142.0,0.54445893]
[1641110267411,0.09041583,47145.0,47142.0,0.54445893]
[1641110267612,0.09041583,47145.0,47142.0,0.36145893]
[1641110268314,0.09041583,47145.0,47142.0,0.53445893]
[1641110269514,0.09041583,47145.0,47143.0,0.36145893]
[1641110270318,0.09041583,47145.0,47144.0,0.36145893]
[1641110272216,0.09041583,47145.0,47144.0,0.54345893]
[1641110274019,0.09041583,47145.0,47144.0,0.36145893]
[1641110274219,0.09041583,47145.0,47144.0,0.54345893]
[1641110275519,0.09041583,47145.0,47144.0,0.36145893]
[1641110276320,0.09041583,47145.0,47144.0,0.54645893]
[1641110277320,0.09041583,47145.0,47144.0,0.27540699]
[1641110277521,0.09041583,47145.0,47144.0,0.69284833]
[1641110277920,0.09041583,47145.0,47144.0,0.60244134]
[1641110278320,0.09041583,47145.0,47144.0,0.78844134]
[1641110279622,0.09041583,47145.0,47144.0,0.60244134]
[1641110279822,0.09041583,47145.0,47142.0,0.84200754]
[1641110279823,0.09041583,47145.0,47143.0,0.60244134]
[1641110280223,0.09041583,47145.0,47144.0,0.184]
[1641110281521,0.09041583,47145.0,47143.0,0.60244134]
[1641110282324,0.09041583,47145.0,47143.0,0.78844134]
[1641110283627,0.09041583,47145.0,47144.0,0.36150645]
[1641110284329,0.09041583,47145.0,47144.0,0.53550645]
[1641110285828,0.09041583,47145.0,47144.0,0.14033567]
[1641110286331,0.09041583,47145.0,47144.0,0.32833567]
[1641110287638,0.09041583,47145.0,47144.0,0.14033567]
[1641110288230,0.09041583,47145.0,47144.0,0.32433567]
[1641110289628,0.09041583,47145.0,47144.0,0.14033567]
[1641110290229,0.09041583,47145.0,47144.0,1.02118309]
[1641110291629,0.09041583,47145.0,47144.0,0.83318309]
[1641110292329,0.09041583,47145.0,47144.0,1.02118309]
[1641110293730,0.09041583,47145.0,47144.0,0.09040608]
[1641110293934,0.09041583,47145.0,47144.0,0.93241362]
[1641110294231,0.09041583,47145.0,47144.0,1.11841362]
[1641110294434,0.09041583,47145.0,47144.0,1.43874929]
[1641110294833,0.09041583,47145.0,47144.0,1.20800754]
[1641110295633,0.09041583,47145.0,47144.0,0.18]
[1641110295834,0.09041583,47145.0,47143.0,1.20286791]
[1641110296034,0.09041583,47145.0,47144.0,0.18]
[1641110296436,0.09041583,47145.0,47144.0,0.32033567]
[1641110298333,0.09041583,47145.0,47144.0,0.32833567]
[1641110298633,0.9245598,47145.0,47144.0,0.32833567]
[1641110298934,0.9245598,47145.0,47144.0,0.188]
[1641110299634,0.9245598,47145.0,47143.0,1.20286791]
[1641110300234,0.9245598,47145.0,47143.0,1.39086791]
[1641110300534,0.9245598,47145.0,47144.0,0.14033567]
[1641110300734,0.83414397,47145.0,47144.0,0.14033567]
[1641110301036,0.02,47146.0,47144.0,0.14033567]
[1641110301235,0.59560695,47145.0,47144.0,0.14033567]
[1641110301838,0.59560695,47145.0,47144.0,0.84321471]
[1641110302234,0.59560695,47145.0,47144.0,1.03121471]
[1641110303334,0.59560695,47145.0,47144.0,1.17155038]
[1641110303534,0.59560695,47145.0,47144.0,0.98355038]
[1641110304253,0.59560695,47145.0,47144.0,1.17155038]
[1641110305735,0.59560695,47145.0,47144.0,0.98355038]
[1641110306235,0.59560695,47145.0,47144.0,1.17155038]
[1641110306636,0.61560695,47146.0,47144.0,1.17155038]
[1641110307438,0.02,47146.0,47145.0,0.60229465]
[1641110308238,0.02,47146.0,47145.0,0.78929465]
[1641110309640,0.02,47146.0,47145.0,0.60229465]
[1641110310239,0.02,47146.0,47145.0,0.78829465]
[1641110310839,0.12373758,47146.0,47145.0,0.78829465]
[1641110311852,0.12373758,47146.0,47145.0,0.60229465]
[1641110312255,0.12373758,47146.0,47145.0,0.76629465]
[1641110312955,0.12373758,47146.0,47145.0,0.164]
[1641110313752,0.12373758,47146.0,47144.0,0.74263032]
[1641110314352,0.12373758,47146.0,47144.0,0.92963032]
[1641110314759,0.93791745,47145.0,47144.0,0.92963032]
[1641110315558,0.93791745,47145.0,47144.0,0.74263032]
[1641110315959,0.83417987,47145.0,47144.0,0.74263032]
[1641110316258,0.83417987,47145.0,47144.0,0.93363032]
[1641110317058,0.85417987,47146.0,47144.0,0.93363032]
[1641110317660,0.93791745,47145.0,47144.0,0.98355038]
[1641110318062,1.22904873,47145.0,47144.0,0.20311471]
[1641110318261,1.53523786,47144.0,47138.0,1.32595873]
[1641110318560,0.18,47142.0,47138.0,1.32595873]
[1641110319560,0.10373758,47141.0,47135.0,0.14033567]
[1641110319765,0.10373758,47141.0,47135.0,0.26033567]
[1641110319963,1.44325887,47146.0,47139.0,0.18]
[1641110320162,1.44325887,47146.0,47143.0,0.18]
[1641110320566,0.02,47146.0,47143.0,0.18]
[1641110321668,0.02,47146.0,47145.0,0.14033567]
[1641110322272,0.02,47146.0,47145.0,0.33233567]
[1641110323570,0.02,47146.0,47145.0,0.14133567]
[1641110324370,0.02,47146.0,47145.0,0.33233567]
[1641110324776,0.58433013,47147.0,47146.0,0.10039174]
[1641110324971,1.42325887,47157.0,47146.0,0.70560329]
[1641110325271,1.42325887,47157.0,47156.0,0.18]
[1641110325471,1.42325887,47157.0,47156.0,0.27357]
[1641110325672,1.42325887,47163.0,47156.0,0.41390567]
[1641110325872,1.42325887,47163.0,47160.0,0.001]
[1641110326872,1.31472604,47164.0,47160.0,0.001]
[1641110327373,1.31472604,47164.0,47163.0,0.001]
[1641110327772,1.31472604,47164.0,47163.0,0.14133567]
[1641110327973,1.31472604,47167.0,47163.0,0.14133567]
[1641110328173,1.31472604,47167.0,47163.0,0.14033567]
[1641110328372,1.31472604,47167.0,47163.0,0.33333567]
[1641110329173,0.009794,47174.0,47163.0,0.33333567]
[1641110329174,1.31472604,47169.0,47163.0,0.33333567]
[1641110329676,1.31472604,47169.0,47163.0,0.14033567]
[1641110330076,1.31472604,47166.0,47163.0,0.98339563]
[1641110330275,1.31472604,47166.0,47163.0,1.16339563]
[1641110330577,1.31472604,47167.0,47164.0,0.84305996]
[1641110331577,1.31472604,47167.0,47166.0,0.02119853]
[1641110332179,1.31472604,47169.0,47166.0,0.02119853]
[1641110332381,1.31472604,47169.0,47166.0,0.21719853]
[1641110333081,1.31472604,47171.0,47166.0,0.21719853]
[1641110333481,1.31472604,47171.0,47168.0,0.20020945]
[1641110333682,1.31472604,47171.0,47170.0,0.14033567]
[1641110334082,1.42325887,47175.0,47170.0,0.16153195]
[1641110334083,1.31472604,47172.0,47170.0,0.16153195]
[1641110334281,1.31472604,47172.0,47170.0,0.35553195]
[1641110334885,1.42325887,47175.0,47171.0,1.20467546]
[1641110334886,1.31472604,47175.0,47171.0,1.20467546]
[1641110335084,0.88287487,47178.0,47171.0,1.20467546]
[1641110335085,0.88287487,47178.0,47174.0,0.16596753]
[1641110335284,0.88287487,47178.0,47177.0,0.02118796]
[1641110335485,0.85097487,47178.0,47177.0,0.08981796]
[1641110335684,1.42325887,47179.0,47177.0,0.28846528]
[1641110335885,1.42325887,47185.0,47177.0,0.28846528]
[1641110336289,1.42325887,47185.0,47177.0,0.48346528]
[1641110336889,1.9222,47192.0,47177.0,0.48346528]
[1641110337087,0.14033567,47195.0,47177.0,0.48346528]
[1641110337491,0.14033567,47195.0,47180.0,0.27821464]
[1641110337790,0.14033567,47195.0,47185.0,0.14033567]
[1641110338288,0.32033567,47195.0,47185.0,0.14033567]
[1641110338490,0.26033567,47195.0,47185.0,0.14033567]
[1641110338688,0.14033567,47195.0,47185.0,0.14033567]
[1641110338888,0.32033567,47195.0,47185.0,0.14033567]
[1641110339692,0.32033567,47195.0,47185.0,0.32033567]
[1641110340093,0.32033567,47195.0,47185.0,0.14033567]
[1641110340291,0.32033567,47195.0,47185.0,0.32433567]
[1641110340694,0.14033567,47195.0,47185.0,0.32433567]
[1641110341094,0.32033567,47195.0,47185.0,0.32433567]
[1641110341694,0.32033567,47195.0,47185.0,0.14033567]
[1641110342393,0.32033567,47195.0,47185.0,0.32233567]
[1641110343595,0.32033567,47195.0,47185.0,0.14033567]
[1641110343895,0.18,47191.0,47185.0,0.14033567]
[1641110344298,0.14033567,47195.0,47185.0,0.31033567]
[1641110345810,0.14033567,47195.0,47185.0,0.14033567]
[1641110346211,0.32033567,47195.0,47185.0,0.30933567]
[1641110346415,0.32033567,47195.0,47185.0,0.169]
[1641110346416,0.18,47189.0,47185.0,0.169]
[1641110346613,1.43133567,47195.0,47185.0,0.169]
[1641110347116,0.18,47190.0,47185.0,0.169]
[1641110347316,0.18,47186.0,47185.0,0.169]
[1641110347515,0.0776,47186.0,47185.0,0.169]
[1641110347718,0.0776,47186.0,47179.0,0.02119274]
[1641110348315,0.0776,47186.0,47179.0,0.20919274]
[1641110348718,0.18,47181.0,47179.0,0.188]
[1641110349817,0.14033567,47180.0,47168.0,1.98323567]
[1641110350018,0.18,47178.0,47168.0,1.98323567]
[1641110350221,0.18,47178.0,47168.0,0.14033567]
[1641110350417,0.14033567,47180.0,47172.0,0.181]
[1641110350618,0.18,47178.0,47172.0,0.181]
[1641110351624,0.18,47173.0,47172.0,0.181]
[1641110351823,0.25871397,47173.0,47172.0,0.181]
[1641110352223,0.25871397,47173.0,47158.0,0.14033567]
[1641110352422,0.18,47165.0,47158.0,0.14033567]
[1641110352623,0.18,47169.0,47158.0,0.14033567]
[1641110353522,0.26871397,47173.0,47158.0,0.14033567]
[1641110353722,0.05751,47173.0,47161.0,0.02120071]
[1641110354122,0.28067134,47174.0,47161.0,0.02120071]
[1641110354322,0.174,47173.0,47162.0,0.01122922]
[1641110354522,0.18,47172.0,47161.0,0.19120071]
[1641110355122,0.24192,47173.0,47161.0,0.19120071]
[1641110355324,0.18,47172.0,47161.0,0.19120071]
[1641110355525,0.24192,47173.0,47161.0,0.19120071]
[1641110355722,0.06792,47173.0,47163.0,0.14033567]
[1641110356127,0.28067134,47174.0,47163.0,0.14033567]
[1641110356324,0.28067134,47174.0,47163.0,0.30433567]
[1641110357625,0.28067134,47174.0,47163.0,0.14033567]
[1641110358425,0.47067134,47174.0,47163.0,0.26033567]
[1641110359825,0.28067134,47174.0,47163.0,0.14033567]
[1641110360425,0.46967134,47174.0,47163.0,0.26033567]
[1641110360629,0.32933567,47174.0,47163.0,0.26033567]
[1641110361428,0.32933567,47174.0,47164.0,0.17224144]
[1641110361630,0.32933567,47174.0,47164.0,0.23017144]
[1641110361829,0.02120071,47179.0,47170.0,0.14033567]
[1641110362427,0.20620071,47179.0,47170.0,0.29233567]
[1641110362829,0.38620071,47179.0,47170.0,0.29233567]
[1641110363429,0.20620071,47179.0,47170.0,0.29233567]
[1641110363630,0.09035147,47178.0,47170.0,0.29233567]
[1641110363931,0.3589929,47176.0,47170.0,0.14033567]
[1641110364331,0.3589929,47176.0,47170.0,0.30833567]
[1641110364532,0.3589929,47175.0,47170.0,0.30833567]
[1641110365634,0.3589929,47175.0,47170.0,0.14033567]
[1641110366333,0.3589929,47175.0,47170.0,0.32433567]
[1641110367836,0.3589929,47175.0,47170.0,0.14033567]
[1641110368339,0.3589929,47175.0,47170.0,0.32533567]
[1641110369638,0.3589929,47175.0,47170.0,0.47177225]
[1641110370041,0.3589929,47177.0,47170.0,0.61210792]
[1641110370239,0.3589929,47177.0,47170.0,0.42710792]
[1641110370440,0.3589929,47177.0,47170.0,0.59291126]
[1641110371041,0.83845212,47180.0,47170.0,0.95443357]
[1641110371042,0.3589929,47179.0,47170.0,0.95443357]
[1641110371642,0.3589929,47179.0,47170.0,0.76743357]
[1641110372043,0.3589929,47177.0,47175.0,0.14033567]
[1641110373845,0.3589929,47178.0,47175.0,0.14033567]
[1641110374344,0.3589929,47178.0,47175.0,0.32033567]
[1641110374544,0.59878965,47179.0,47175.0,0.32033567]
[1641110375151,0.59878965,47177.0,47175.0,0.32033567]
[1641110375844,0.59878965,47177.0,47175.0,0.14033567]
[1641110376346,0.59878965,47177.0,47175.0,0.32633567]
[1641110377245,0.59878965,47176.0,47175.0,0.32633567]
[1641110377644,0.36095115,47176.0,47175.0,0.32633567]
[1641110377845,0.36095115,47176.0,47175.0,0.14033567]
[1641110378044,0.44699115,47176.0,47175.0,0.14033567]
[1641110378446,0.44699115,47176.0,47175.0,0.33033567]
[1641110379747,0.44699115,47176.0,47175.0,0.14033567]
[1641110380046,0.08604,47176.0,47175.0,0.14033567]
[1641110380449,0.08604,47176.0,47175.0,0.33233567]
[1641110380646,0.44696321,47176.0,47175.0,0.33233567]
[1641110381246,0.08604,47176.0,47175.0,0.33233567]
[1641110381646,0.08604,47176.0,47175.0,0.14033567]
[1641110382047,1.01484132,47176.0,47175.0,0.14033567]
[1641110382448,1.01484132,47176.0,47175.0,0.32633567]
[1641110382947,0.1763892,47176.0,47175.0,0.32633567]
[1641110383447,1.01484132,47176.0,47175.0,0.32633567]
[1641110383647,1.01484132,47176.0,47175.0,0.14033567]
[1641110384454,1.01484132,47176.0,47175.0,0.32633567]
[1641110385853,1.01484132,47176.0,47175.0,0.14033567]
[1641110386455,1.01484132,47176.0,47175.0,0.32733567]
[1641110387763,1.01484132,47176.0,47175.0,0.14033567]
[1641110388467,1.01484132,47176.0,47175.0,0.32833567]
[1641110389866,1.01484132,47176.0,47175.0,0.14033567]
[1641110390166,0.1763892,47176.0,47175.0,0.14033567]
[1641110390467,0.1763892,47176.0,47175.0,0.32933567]
[1641110390666,0.08604,47176.0,47175.0,0.32933567]
[1641110390869,0.60084682,47176.0,47175.0,0.68909827]
[1641110391672,0.83845212,47177.0,47175.0,0.32933567]
[1641110391972,0.83845212,47176.0,47175.0,0.14033567]
[1641110392569,0.83845212,47176.0,47175.0,0.32733567]
[1641110392770,0.17205635,47176.0,47175.0,0.32733567]
[1641110393670,1.01050847,47176.0,47175.0,0.32733567]
[1641110393871,1.01050847,47176.0,47175.0,0.14033567]
[1641110394472,1.01050847,47176.0,47175.0,0.32333567]
[1641110395675,0.17205635,47176.0,47175.0,0.32333567]
[1641110395877,0.17205635,47176.0,47175.0,0.14033567]
[1641110396476,0.17205635,47176.0,47175.0,0.32333567]
[1641110397877,0.17205635,47176.0,47175.0,0.14033567]
[1641110398376,1.01355764,47176.0,47175.0,0.14033567]
[1641110398575,1.01355764,47176.0,47175.0,0.32333567]
[1641110399776,1.01355764,47176.0,47175.0,0.14033567]
[1641110400481,1.01355764,47176.0,47175.0,0.32733567]
[1641110401877,0.17205635,47176.0,47175.0,0.14033567]
[1641110402079,0.07695,47176.0,47175.0,0.14033567]
[1641110402277,0.08249,47177.0,47175.0,0.14033567]
[1641110402476,0.08249,47177.0,47175.0,0.32133567]
[1641110403777,0.08249,47177.0,47175.0,0.14033567]
[1641110406480,0.08249,47177.0,47175.0,0.30333567]
[1641110407579,0.18,47180.0,47175.0,0.30333567]
[1641110407781,0.02119835,47184.0,47175.0,0.14033567]
[1641110409182,0.02119835,47184.0,47167.0,0.20119835]
[1641110409384,0.18,47181.0,47168.0,0.18]
[1641110409585,0.02119835,47184.0,47168.0,0.19121941]
[1641110409788,0.02119835,47184.0,47169.0,0.01121941]
[1641110410789,0.18,47181.0,47175.0,0.14033567]
[1641110411086,0.02119835,47184.0,47175.0,0.14033567]
[1641110411286,0.02119835,47184.0,47168.0,0.18]
[1641110411287,0.18,47181.0,47168.0,0.18]
[1641110412593,0.18,47181.0,47167.0,0.02119835]
[1641110412786,0.18,47181.0,47168.0,0.18]
[1641110412988,0.18,47181.0,47168.0,0.19121662]
[1641110413187,0.18,47181.0,47169.0,0.01121662]
[1641110413789,1.6242042,47181.0,47175.0,0.14033567]
[1641110414189,1.4442042,47181.0,47175.0,0.14033567]
[1641110414389,0.10328094,47180.0,47175.0,0.14033567]
[1641110414591,0.10328094,47180.0,47175.0,0.98353211]
[1641110414791,1.32385385,47177.0,47175.0,0.98353211]
[1641110415194,1.32385385,47177.0,47176.0,0.60228317]
[1641110415491,1.6242042,47181.0,47175.0,0.98353211]
[1641110415492,0.18,47181.0,47175.0,0.14033567]
[1641110416091,0.02119835,47184.0,47175.0,0.14033567]
[1641110416391,0.18,47181.0,47175.0,0.14033567]
[1641110418703,0.02119835,47184.0,47175.0,0.14033567]
[1641110419097,0.18,47181.0,47175.0,0.14033567]
[1641110419297,0.02119835,47184.0,47175.0,0.14033567]
[1641110419698,0.18,47181.0,47175.0,0.14033567]
[1641110419899,0.20119835,47184.0,47175.0,0.14033567]
[1641110424402,1.31219835,47184.0,47175.0,0.14033567]
[1641110424703,0.18,47176.0,47175.0,0.14033567]
[1641110424902,1.381104,47176.0,47165.0,1.44537244]
[1641110425102,0.18,47169.0,47165.0,1.44537244]
[1641110425304,0.18,47169.0,47168.0,1.32492474]
[1641110426005,1.291,47169.0,47168.0,1.32492474]
[1641110428206,1.291,47169.0,47168.0,1e-08]
[1641110428408,1.111,47166.0,47162.0,0.19538738]
[1641110428608,1.111,47162.0,47158.0,1.56582014]
[1641110428807,1.291,47160.0,47158.0,1.56582014]
[1641110429411,0.03100446,47159.0,47158.0,0.61968743]
[1641110430014,0.3116758,47159.0,47158.0,0.61968743]
[1641110430214,1.4226758,47159.0,47158.0,0.61968743]
[1641110430413,1.4226758,47159.0,47144.0,0.14033567]
[1641110430615,1.291,47152.0,47144.0,0.14033567]